[Event "European Women Blitz-ch 2024"]
[Site "Monaco"]
[Date "2025.01.10"]
[Round "8.15"]
[White "Vega Gutierrez, Sabrina"]
[Black "Javakhishvili, Lela"]
[Result "1-0"]
[Annotator "TA"]
[ECO "B03"]
[WhiteElo "2393"]
[BlackElo "2426"]
[PlyCount "87"]
[EventDate "2025.01.06"]
[EventType "swiss"]
[EventCountry "MNC"]
[SourceTitle "playchess.com"]
[Source "ChessBase"]
[SourceQuality "1"]
[TimeControl "180+2"]

{[%evp 12,87,35,44,29,31,62,24,23,32,55,27,32,27,46,21,26,18,22,31,14,13,10,19,22,-49,-35,-44,-15,-35,0,0,0,0,177,0,0,0,0,0,111,116,125,78,76,47,56,60,54,56,50,42,69,60,52,45,18,22,11,0,161,14,654,641,838,825,956,804,29968,29973,29986,29974,29974,29975,29974,29974,6279,4862]} 1. e4 {[%emt 0:00:01][%cal Be2e4,Be4e5][%mdl 32]} Nf6 {[%emt 0:00:02]} 2. e5 {[%emt 0:00:01]} Nd5 {[%emt 0:00:01]} 3. c4 {[%emt 0:00:03]} Nb6 {[%emt 0:00:02]} 4. d4 {[%emt 0:00:02]} d6 {[%emt 0:00:01]} 5. exd6 {[%emt 0:00:01]} exd6 {[%emt 0:00:02]} 6. Nc3 {[%emt 0:00:04]} Be7 {[%emt 0:00:01]} 7. Bd3 {[%emt 0:00:07]} O-O {[%emt 0:00:05]} 8. Nge2 {[%emt 0:00:40]} Na6 {[%emt 0:00:09]} 9. b3 {[%emt 0:00:16] White is more active.} c6 {[%emt 0:00:23]} 10. O-O {[%emt 0:00:03]} Re8 {[%emt 0:00:09]} 11. a3 {[%emt 0:00:07]} Bf6 {[%emt 0:00:05]} 12. Qc2 {[%emt 0:00:02]} g6 {[%emt 0:00:01]} 13. h3 {[%emt 0:00:14]} d5 {[%emt 0:00:02]} 14. c5 {[%emt 0:00:06]} Nd7 {[%emt 0:00:02][%cal Bb6d7,Bd7f8,Bf8e6][%mdl 32]} 15. Bxa6 {[%emt 0:00:23]} bxa6 {[%emt 0:00:01]} 16. Bf4 {[%emt 0:00:03]} a5 {[%emt 0:00:03]} 17. Qd3 $36 {[%emt 0:00:04][%mdl 2048] Dodges Ba6. White fights for an advantage.} Nf8 {[%emt 0:00:05]} 18. Ng3 {[%emt 0:00:06]} (18. Bd6 $11) 18... Ne6 $15 {[%emt 0:00:03][%csl LRd4,LRf4]} 19. Be3 {[%emt 0:00:04]} Ng7 {[%emt 0:00:10]} 20. Rfe1 {[%emt 0:00:03]} Nf5 {[%emt 0:00:01]} 21. Nxf5 $1 {[%emt 0:00:08]} Bxf5 {[%emt 0:00:02]} 22. Qa6 {[%emt 0:00:05]} Qc7 $2 {[%emt 0:00:01]} (22... Re6 $11 {and Black is okay.}) 23. Ne2 $2 {[%emt 0:00:03]} ({White must play} 23. Nxd5 $18 cxd5 24. Qxf6) 23... g5 {[%emt 0:00:22]} 24. Bd2 {[%emt 0:00:06]} Re6 {[%emt 0:00:17]} 25. Bxa5 {[%emt 0:00:16]} Qe7 {[%emt 0:00:02]} (25... Qb8 $11) 26. Ng3 {[%emt 0:00:11]} Bg6 {[%emt 0:00:04]} 27. Rxe6 {[%emt 0:00:03]} ({White should try} 27. Bc3) 27... Qxe6 $16 {[%emt 0:00:06]} 28. Qb7 {[%emt 0:00:06]} Qc8 {[%emt 0:00:24]} 29. Qxc8+ {[%emt 0:00:03]} Rxc8 {[%emt 0:00:00]} 30. Bc3 {[%emt 0:00:03]} Re8 {[%emt 0:00:06]} 31. b4 {[%emt 0:00:06]} h5 {[%emt 0:00:02]} 32. a4 {[%emt 0:00:03]} a6 $1 {[%emt 0:00:01]} 33. b5 {[%emt 0:00:06]} axb5 {[%emt 0:00:06]} 34. axb5 {[%emt 0:00:01]} cxb5 {[%emt 0:00:00]} 35. Ra6 {[%emt 0:00:02]} h4 $2 {[%emt 0:00:03]} (35... b4 $1 $11 36. Bxb4 Bxd4) 36. Nf1 {[%emt 0:00:01]} (36. Rxf6 $18 hxg3 37. fxg3) 36... Bd3 $2 {[%emt 0:00:02][%mdl 8192]} 37. Rxf6 $18 {[%emt 0:00:04]} b4 {[%emt 0:00:02]} 38. Bxb4 {[%emt 0:00:01]} Ra8 {[%emt 0:00:01]} 39. c6 {[%emt 0:00:06]} Ra1 {[%emt 0:00:03]} 40. c7 {[%emt 0:00:01]} Rxf1+ {[%emt 0:00:04]} 41. Kh2 {[%emt 0:00:00]} Rc1 {[%emt 0:00:14]} 42. Bc5 {[%emt 0:00:01]} Kg7 {[%emt 0:00:01]} 43. c8=Q {[%emt 0:00:12]} Kxf6 {[%emt 0:00:02] [#]} 44. Be7+ $1 {[%emt 0:00:04]} 1-0

[Event "European Women Blitz-ch 2024"]
[Site "Monaco"]
[Date "2025.01.10"]
[Round "8.16"]
[White "Gaponenko, Inna"]
[Black "Charkhalashvili, Inga"]
[Result "1/2-1/2"]
[Annotator "TA"]
[ECO "B01"]
[WhiteElo "2346"]
[BlackElo "2240"]
[PlyCount "97"]
[EventDate "2025.01.06"]
[EventType "swiss"]
[EventCountry "MNC"]
[SourceTitle "playchess.com"]
[Source "ChessBase"]
[SourceQuality "1"]
[TimeControl "180+2"]

{[%evp 10,97,56,66,63,58,58,52,58,56,85,58,58,50,50,20,71,-23,-15,-14,-10,-16,0,0,37,23,40,0,19,0,0,0,-1,0,0,-19,-5,-48,0,-9,-3,-25,-1,0,0,-20,0,0,12,15,15,13,60,13,26,11,12,0,0,0,0,0,15,0,0,0,8,8,21,14,17,16,16,0,0,0,0,0,0,0,0,0,0,0,0,0,0,0,0,0]} 1. e4 {[%emt 0:00:01]} d5 {[%emt 0:00:01]} 2. exd5 {[%emt 0:00:01]} Qxd5 {[%emt 0:00:01]} 3. Nc3 {[%emt 0:00:02]} Qd8 {[%emt 0:00:00]} 4. d4 {[%emt 0:00:02]} Nf6 {[%emt 0:00:01]} 5. Nf3 {[%emt 0:00:01]} Bg4 {[%emt 0:00:02]} 6. h3 {[%emt 0:00:01]} Bxf3 {[%emt 0:00:01]} 7. Qxf3 {[%emt 0:00:02]} c6 $1 {[%emt 0:00:00]} 8. Bf4 {[%emt 0:00:04]} e6 {[%emt 0:00:02]} 9. O-O-O {[%emt 0:00:02]} Be7 {[%emt 0:00:01]} 10. g4 {[%emt 0:00:03] White has more active pieces.} Nd5 {[%emt 0:00:03]} 11. Bg3 {[%emt 0:00:04]} (11. Nxd5 Qxd5 12. Qxd5 cxd5 13. Be2) 11... Qa5 {[%emt 0:00:05]} 12. Bc4 {[%emt 0:00:10]} (12. Nxd5 {simplifies} Qxd5 13. Qxd5 cxd5 14. Be2) 12... Nd7 {[%emt 0:00:19] [#]} (12... Nxc3 $11 {remains equal.} 13. Qxc3 Qxc3 14. bxc3 Nd7) 13. Bb3 {[%emt 0:00:19]} (13. Ne4 $1 $16) 13... Nxc3 $11 {[%emt 0:00:12]} 14. Qxc3 {[%emt 0:00:01]} Qxc3 {[%emt 0:00:02]} 15. bxc3 {[%emt 0:00:01]} a5 {[%emt 0:00:12]} 16. a4 {[%emt 0:00:02]} b5 {[%emt 0:00:34]} 17. axb5 {[%emt 0:00:06]} cxb5 {[%emt 0:00:03]} 18. d5 {[%emt 0:00:01]} Nc5 {[%emt 0:00:16]} 19. dxe6 {[%emt 0:00:09]} fxe6 {[%emt 0:00:19]} 20. Rhe1 {[%emt 0:00:07]} Ra6 {[%emt 0:00:02]} 21. f4 {[%emt 0:00:19]} O-O {[%emt 0:00:32]} 22. Re3 {[%emt 0:02:08]} Rc6 {[%emt 0:00:01]} 23. Kb2 {[%emt 0:00:00]} Bf6 {[%emt 0:00:06]} 24. g5 {[%emt 0:00:00]} Be7 {[%emt 0:00:15]} 25. h4 {[%emt 0:00:00]} g6 {[%emt 0:00:05]} 26. Rde1 {[%emt 0:00:00]} Kf7 {[%emt 0:00:02]} 27. Re5 {[%emt 0:00:00]} Rfc8 {[%emt 0:00:08] ...Nxb3 would now be deadly.} 28. f5 {[%emt 0:00:00]} gxf5 {[%emt 0:00:02]} (28... Nxb3 $5 29. Rxe6 Ba3+ 30. Kxa3 (30. Kxb3 $2 {loses.} Rxc3+ 31. Ka2 Rxg3 $19) 30... Nd2 $11) 29. Rxf5+ {[%emt 0:00:00]} Kg6 {[%emt 0:00:03]} 30. Rfe5 {[%emt 0:00:00][%cal Rb3e6]} Kf7 {[%emt 0:00:08]} (30... Bf8 $11) 31. Rf1+ {[%emt 0:00:11]} (31. Ba2 $14) 31... Ke8 {[%emt 0:00:03]} 32. Rf3 {[%emt 0:00:01]} Bd6 {[%emt 0:00:05]} 33. Ree3 {[%emt 0:00:03] Bd5 is the strong threat.} Bxg3 {[%emt 0:00:01]} 34. Rxg3 {[%emt 0:00:00]} Ke7 {[%emt 0:00:01]} 35. h5 {[%emt 0:00:02]} Rg8 {[%emt 0:00:02]} 36. g6 {[%emt 0:00:04]} hxg6 {[%emt 0:00:01]} 37. hxg6 {[%emt 0:00:01]} Nxb3 {[%emt 0:00:03]} 38. cxb3 {[%emt 0:00:01][%mdl 4096] Endgame KRR-KRR} Rg7 {[%emt 0:00:02]} 39. Re5 {[%emt 0:00:02]} b4 {[%emt 0:00:06]} 40. cxb4 {[%emt 0:00:01]} axb4 {[%emt 0:00:00]} 41. Re4 {[%emt 0:00:01]} Rb6 {[%emt 0:00:01]} 42. Rgg4 {[%emt 0:00:01]} Kf6 {[%emt 0:00:01]} 43. Ref4+ {[%emt 0:00:02]} Ke7 {[%emt 0:00:02]} 44. Rxb4 {[%emt 0:00:02]} Rxb4 {[%emt 0:00:01]} 45. Rxb4 {[%emt 0:00:01] Rb7+ would kill now.} Rxg6 {[%emt 0:00:01]} 46. Rb7+ {[%emt 0:00:01]} Kd6 {[%emt 0:00:00]} 47. Kc3 {[%emt 0:00:01]} Rg4 {[%emt 0:00:03]} 48. Rb6+ {[%emt 0:00:01]} Kd5 {[%emt 0:00:01]} 49. Rb5+ {[%emt 0:00:00]} 1/2-1/2

[Event "European Women Blitz-ch 2024"]
[Site "Monaco"]
[Date "2025.01.10"]
[Round "8.17"]
[White "Atalik, Ekaterina"]
[Black "Gvetadze, Sofio"]
[Result "1-0"]
[Annotator "TA"]
[ECO "A31"]
[WhiteElo "2395"]
[BlackElo "2298"]
[PlyCount "73"]
[EventDate "2025.01.06"]
[EventType "swiss"]
[EventCountry "MNC"]
[SourceTitle "playchess.com"]
[Source "ChessBase"]
[SourceQuality "1"]
[TimeControl "180+2"]

{[%evp 14,73,72,41,45,32,50,38,51,47,50,33,35,48,72,74,54,62,75,66,75,61,77,54,113,104,103,58,85,89,80,64,68,52,60,22,15,16,0,-26,8,0,61,-33,-31,-170,-172,-200,-190,-208,-167,-225,-212,-521,-499,-1156,-1120,-1783,-1737,-1770,-1672,-1801]} 1. d4 {[%emt 0:00:01]} Nf6 {[%emt 0:00:01]} 2. c4 {[%emt 0:00:01]} c5 {[%emt 0:00:01]} 3. e3 {[%emt 0:00:04]} g6 {[%emt 0:00:02]} 4. Nf3 {[%emt 0:00:02]} Bg7 {[%emt 0:00:01]} 5. Nc3 {[%emt 0:00:03]} b6 {[%emt 0:00:03]} 6. d5 {[%emt 0:00:03]} O-O {[%emt 0:00:02]} 7. Bd3 {[%emt 0:00:02]} d6 {[%emt 0:00:01]} 8. O-O {[%emt 0:00:03]} e6 {[%emt 0:00:03]} 9. e4 {[%emt 0:00:02]} exd5 {[%emt 0:00:01]} 10. cxd5 {[%emt 0:00:02]} Re8 {[%emt 0:00:02]} 11. h3 {[%emt 0:00:02]} Ba6 {[%emt 0:00:04]} 12. Re1 {[%emt 0:00:06]} Bxd3 {[%emt 0:00:03]} 13. Qxd3 {[%emt 0:00:02]} Nbd7 {[%emt 0:00:02]} 14. Bf4 {[%emt 0:00:03]} Qb8 {[%emt 0:00:13]} 15. a4 {[%emt 0:00:06]} a6 {[%emt 0:00:03]} 16. Nd2 {[%emt 0:00:08] White is much more active.} Nh5 {[%emt 0:00:06]} 17. Bh2 {[%emt 0:00:03]} Ne5 {[%emt 0:00:03]} 18. Qc2 {[%emt 0:00:13]} Ra7 {[%emt 0:00:42]} (18... Bh6 $14) 19. f4 $16 {[%emt 0:00:12]} Nd7 {[%emt 0:00:06]} 20. Nf3 {[%emt 0:00:09]} Rb7 {[%emt 0:00:17]} 21. g4 {[%emt 0:00:03]} Bd4+ {[%emt 0:00:21]} 22. Nxd4 {[%emt 0:00:15]} cxd4 {[%emt 0:00:02]} 23. Ne2 {[%emt 0:00:03][%cal Bc3e2,Be2d4,Bd4c6][%mdl 32]} Rc7 $1 {[%emt 0:00:04]} 24. Qb1 {[%emt 0:00:08]} Nhf6 $1 {[%emt 0:00:15]} 25. Nxd4 {[%emt 0:00:06] Threatens to win with Nc6.} Rc4 {[%emt 0:00:01]} 26. Nc6 {[%emt 0:00:07]} Qc7 {[%emt 0:00:07][%cal Ob6b5]} 27. g5 {[%emt 0:00:26]} Rcxe4 {[%emt 0:00:13]} (27... Nxe4 $11 28. b3 Rxc6 29. dxc6 Qxc6) 28. Rxe4 {[%emt 0:00:11]} ({Better is} 28. Rc1 $1 $14 Qb7 (28... Nxd5 29. Qd3 $16) 29. gxf6 Nxf6 30. Qd3) 28... Nxe4 $15 {[%emt 0:00:01]} 29. f5 {[%emt 0:00:06]} Nxg5 $19 {[%emt 0:00:07]} ({Don't do} 29... gxf5 30. Qf1 $15) 30. Qd3 {[%emt 0:00:17]} Nc5 $36 {[%emt 0:00:11][%mdl 2048] Black is on the roll.} 31. Qg3 {[%emt 0:00:09]} Nge4 {[%emt 0:00:02]} 32. Qf3 {[%emt 0:00:05]} (32. Qh4 $142) 32... Qd7 {[%emt 0:00:22]} 33. f6 $2 {[%emt 0:00:14]} (33. Re1 {is tougher.}) 33... Ng5 {[%emt 0:00:12][%csl LRf3,LRh3]} 34. Qg3 {[%emt 0:00:12]} (34. Qg2 $142 Nxh3+ 35. Kh1) 34... Nce4 {[%emt 0:00:04]} 35. Qg2 {[%emt 0:00:12]} Nxh3+ {[%emt 0:00:05] A dynamic duo of knights.} 36. Kf1 {[%emt 0:00:04]} Qf5+ {[%emt 0:00:02]} 37. Ke2 {[%emt 0:00:05]} 1-0

[Event "European Women Blitz-ch 2024"]
[Site "Monaco"]
[Date "2025.01.10"]
[Round "8.18"]
[White "Osmak, Yuliia"]
[Black "Rodriguez Redondo, Adhara"]
[Result "1-0"]
[Annotator "TA"]
[ECO "A00"]
[WhiteElo "2463"]
[BlackElo "2189"]
[PlyCount "91"]
[EventDate "2025.01.06"]
[EventType "swiss"]
[EventCountry "MNC"]
[SourceTitle "playchess.com"]
[Source "ChessBase"]
[SourceQuality "1"]
[TimeControl "180+2"]

{[%evp 14,91,12,13,19,15,24,29,36,31,45,41,56,22,39,23,89,0,30,4,0,3,4,0,53,-8,64,-22,120,80,62,41,208,35,300,297,334,20,291,280,287,300,302,282,305,302,297,233,309,280,332,218,383,395,384,211,216,216,214,215,285,267,288,276,270,269,281,272,259,259,348,274,406,406,701,695,804,772,29986,29987]} 1. b4 {[%emt 0:00:01]} e5 {[%emt 0:00:02]} 2. Bb2 {[%emt 0:00:00]} Bxb4 {[%emt 0:00:04]} 3. Bxe5 {[%emt 0:00:01]} Nf6 {[%emt 0:00:03]} 4. e3 {[%emt 0:00:01]} Nc6 {[%emt 0:00:07]} 5. Bb2 {[%emt 0:00:01]} d5 {[%emt 0:00:04]} 6. Nf3 {[%emt 0:00:01]} O-O {[%emt 0:00:02]} 7. Be2 {[%emt 0:00:01]} Re8 {[%emt 0:00:20]} 8. O-O {[%emt 0:00:01]} h6 {[%emt 0:00:03]} 9. d3 {[%emt 0:00:02]} Bf5 {[%emt 0:00:07]} 10. Nbd2 {[%emt 0:00:02]} Qe7 {[%emt 0:00:07]} 11. c4 {[%emt 0:00:02]} dxc4 {[%emt 0:00:13]} 12. Nxc4 {[%emt 0:00:01]} Rad8 {[%emt 0:00:10]} 13. d4 {[%emt 0:00:01]} Be4 {[%emt 0:00:25]} 14. Rc1 {[%emt 0:00:09]} Nd5 {[%emt 0:00:07]} (14... Na5 $11 {remains equal.}) 15. Qb3 {[%emt 0:00:21]} (15. a3 $16 Ba5 16. Nfd2) 15... Nb6 {[%emt 0:00:12]} 16. Nce5 {[%emt 0:00:08]} Nxe5 {[%emt 0:00:09]} 17. Nxe5 {[%emt 0:00:01]} Bd5 {[%emt 0:00:02]} 18. Qc2 {[%emt 0:00:04]} c6 {[%emt 0:00:06]} (18... Bd6 $11) 19. Ba1 {[%emt 0:00:11]} (19. e4 $1 $14 Bxa2 20. Ra1) 19... Bd6 {[%emt 0:00:08]} (19... Nd7 $11) 20. Bd3 {[%emt 0:00:08]} ({White should try} 20. e4 $14 Bxe5 21. dxe5) 20... Qg5 {[%emt 0:00:34]} (20... Bxe5 $11 21. dxe5 Qh4) 21. f4 {[%emt 0:00:06]} Qe7 {[%emt 0:00:15]} 22. Rce1 {[%emt 0:00:03]} Nd7 $2 {[%emt 0:00:06]} (22... Bxe5 $1 $14 23. fxe5 (23. dxe5 Qa3 $14) 23... Be6) 23. Re2 $2 {[%emt 0:00:11]} ({Only move:} 23. e4 $18 Nxe5 24. fxe5 (24. exd5 Nf3+ 25. gxf3 Qxe1 $11) 24... Bxe5 25. dxe5 (25. exd5 $2 Bxh2+ 26. Kxh2 Qh4+ 27. Kg1 Rxe1 $19) 25... Bxa2 26. Qxa2 Rxd3 27. Qxa7) 23... c5 $2 {[%emt 0:00:09][%mdl 8192]} ({Better is} 23... Bxe5 $14 24. fxe5 Be6) 24. e4 $18 {[%emt 0:00:05]} Bc6 {[%emt 0:00:03][%cal Rd6e5]} 25. d5 $2 {[%emt 0:00:05]} ({Much less strong is} 25. Nxc6 bxc6 26. e5 Bc7 $18) (25. Nxf7 $18 Kxf7 (25... Qxf7 $2 26. Bc4 $18) 26. d5) 25... Nxe5 $2 {[%emt 0:00:10][%mdl 8192]} (25... Bxe5 $11 {and Black has nothing to worry.} 26. fxe5 Nxe5) 26. fxe5 {[%emt 0:00:02]} (26. Bxe5 Bxe5 27. dxc6 Bd4+ 28. Kh1 bxc6 $16) 26... Bxe5 {[%emt 0:00:01]} 27. dxc6 {[%emt 0:00:10]} Bxa1 {[%emt 0:00:01]} 28. Rxa1 {[%emt 0:00:01]} Qe5 {[%emt 0:00:01]} 29. Rd1 {[%emt 0:00:05]} bxc6 {[%emt 0:00:04]} 30. Red2 {[%emt 0:00:07]} Qd4+ {[%emt 0:00:02]} 31. Kh1 {[%emt 0:00:01] and Bc4 should not be overlooked} Qe3 {[%emt 0:00:03]} 32. Bc4 {[%emt 0:00:06]} Rd4 $2 {[%emt 0:00:01]} (32... Rxd2 33. Qxd2 Qxd2 34. Rxd2 Kf8) 33. Rxd4 {[%emt 0:00:06]} cxd4 {[%emt 0:00:01]} 34. Qb3 {[%emt 0:00:03]} (34. Bd3 $142) 34... Qxb3 {[%emt 0:00:03]} 35. axb3 {[%emt 0:00:05]} Rxe4 {[%emt 0:00:01][%mdl 4096] Endgame KRB-KR} 36. Kg1 {[%emt 0:00:01]} c5 {[%emt 0:00:02]} 37. Ra1 {[%emt 0:00:02]} Re7 {[%emt 0:00:01]} 38. Ra6 {[%emt 0:00:06]} Rc7 {[%emt 0:00:02]} 39. Kf2 {[%emt 0:00:15]} Kf8 {[%emt 0:00:02]} 40. Ke2 {[%emt 0:00:01]} Ke7 {[%emt 0:00:01]} 41. Kd3 {[%emt 0:00:01]} g6 {[%emt 0:00:05]} 42. g3 {[%emt 0:00:03]} f6 {[%emt 0:00:03]} (42... h5 $142 43. Ke4 Kf8) 43. Re6+ {[%emt 0:00:01]} Kd7 {[%emt 0:00:03]} (43... Kf8 $142 44. Rxf6+ Kg7) 44. Rxf6 {[%emt 0:00:02]} a5 {[%emt 0:00:00]} 45. Rxg6 {[%emt 0:00:02]} Ra7 {[%emt 0:00:03]} 46. Rg7+ {[%emt 0:00:01]} 1-0

[Event "European Women Blitz-ch 2024"]
[Site "Monaco"]
[Date "2025.01.10"]
[Round "9.1"]
[White "Kosteniuk, Alexandra"]
[Black "Maltsevskaya, Aleksandra"]
[Result "0-1"]
[Annotator "TA"]
[ECO "B27"]
[WhiteElo "2484"]
[BlackElo "2368"]
[PlyCount "75"]
[EventDate "2025.01.06"]
[EventType "swiss"]
[EventCountry "MNC"]
[SourceTitle "playchess.com"]
[Source "ChessBase"]
[SourceQuality "1"]
[TimeControl "180+2"]

{[%evp 16,75,36,9,34,54,50,22,26,0,0,-13,-11,-15,0,0,0,0,0,2,25,16,29,0,18,-262,-295,-405,0,-38,0,0,0,0,15,15,15,15,16,0,0,0,0,0,0,0,0,-35,-14,-48,-31,-166,-142,-141,-92,-93,-93,-93,-93,-196,-205,-222]} 1. e4 {[%emt 0:00:01]} c5 {[%emt 0:00:01]} 2. c3 {[%emt 0:00:01]} g6 {[%emt 0:00:03]} 3. Nf3 {[%emt 0:00:03]} Nc6 {[%emt 0:00:05]} 4. d4 {[%emt 0:00:04]} d5 {[%emt 0:00:09]} 5. e5 {[%emt 0:00:02]} cxd4 {[%emt 0:00:06]} 6. cxd4 {[%emt 0:00:01]} Bg7 {[%emt 0:00:02]} 7. Bb5 {[%emt 0:00:04]} Nh6 {[%emt 0:00:03]} 8. Nc3 {[%emt 0:00:04]} O-O {[%emt 0:00:03]} 9. O-O {[%emt 0:00:08]} f6 {[%emt 0:00:13]} 10. exf6 {[%emt 0:00:12]} exf6 {[%emt 0:00:01]} 11. Re1 {[%emt 0:00:17]} Bg4 {[%emt 0:00:13]} 12. Bxc6 {[%emt 0:00:05]} bxc6 {[%emt 0:00:02]} 13. h3 {[%emt 0:00:01]} Bxf3 {[%emt 0:00:07]} 14. Qxf3 {[%emt 0:00:01]} Nf7 {[%emt 0:00:03]} 15. b3 {[%emt 0:00:14]} f5 {[%emt 0:00:07]} 16. Qd3 {[%emt 0:00:09]} Qh4 {[%emt 0:00:17]} 17. Ne2 {[%emt 0:00:18]} Rfe8 {[%emt 0:00:17][%cal Og7d4]} 18. Be3 {[%emt 0:00:04]} Re6 {[%emt 0:00:31]} 19. Rac1 {[%emt 0:00:15]} Rae8 {[%emt 0:00:01][%cal Oe6e3]} 20. Red1 $2 {[%emt 0:00:34][%mdl 8192] [#]} (20. g3 $11 {and White is okay.} Qd8 (20... Qxh3 $2 21. Nf4 $18) 21. Nf4) 20... Bh6 $1 $19 {[%emt 0:00:43]} 21. Bxh6 {[%emt 0:00:07]} Qxh6 $2 {[%emt 0:00:02]} (21... Rxe2 $19 22. Rf1 (22. Be3 $2 R8xe3 23. Qxe3 Rxe3 $19) 22... Qxh6 (22... Nxh6 $2 23. Rxc6 Qe4 24. Qb5 $19)) 22. Ng3 {[%emt 0:00:09]} f4 {[%emt 0:00:05]} 23. Nf1 {[%emt 0:00:02]} Ng5 {[%emt 0:00:03][%cal Of4f3] and ...f3! would now be decisive} 24. Nh2 {[%emt 0:00:01]} Qh4 {[%emt 0:00:16]} 25. Nf3 {[%emt 0:00:10]} Nxf3+ {[%emt 0:00:02]} 26. Qxf3 {[%emt 0:00:01]} Qf6 {[%emt 0:00:04]} 27. Kh2 {[%emt 0:00:13]} Kg7 {[%emt 0:00:01]} 28. Rc2 {[%emt 0:00:02]} Re4 {[%emt 0:00:04]} 29. Qc3 {[%emt 0:00:12]} R8e6 {[%emt 0:00:01]} 30. f3 {[%emt 0:00:01]} Re3 {[%emt 0:00:01]} 31. Qd2 {[%emt 0:00:03]} Qg5 {[%emt 0:00:04]} 32. Qf2 {[%emt 0:00:27] Inhibits Qg3+.} h5 {[%emt 0:00:07]} 33. h4 {[%emt 0:00:00]} (33. Rdc1 $15) 33... Qf6 {[%emt 0:00:02]} 34. Rdc1 {[%emt 0:00:00]} Kh7 {[%emt 0:00:05]} (34... Qxd4 35. Rxc6 Qf6 36. Rxe6 Rxe6 37. Rd1 $11 (37. Qxa7+ Re7 $11)) ({Black should try} 34... Kf8 {[%cal Oa7a6]} 35. b4 Qe7 (35... Qxd4 36. Rxc6 Qf6 37. Rc8+ Kg7 38. R8c7+ Kh6 39. Rxa7 $11)) 35. b4 $17 {[%emt 0:00:00]} a6 {[%emt 0:00:03][%cal Oh7h6] Black is more active.} (35... Qxd4 36. Rxc6 Qf6 37. Rxe6 Rxe6 38. Rd1 $11 (38. Qxa7+ Re7 $11)) 36. a4 {[%emt 0:00:00][%cal Ob4b5]} Kh6 {[%emt 0:00:02][%cal Oe3b3]} ({Don't play} 36... Qxd4 $6 37. Rxc6 Qxb4 38. Rc8 $11) 37. Rd1 {[%emt 0:00:00] [#]} (37. Rb2 $17) 37... Qe7 $1 $19 {[%emt 0:00:01]} 38. Rdd2 {[%emt 0:00:12]} 0-1

[Event "European Women Blitz-ch 2024"]
[Site "Monaco"]
[Date "2025.01.10"]
[Round "9.2"]
[White "Arabidze, Meri"]
[Black "Tsolakidou, Stavroula"]
[Result "0-1"]
[Annotator "TA"]
[ECO "E62"]
[WhiteElo "2457"]
[BlackElo "2451"]
[PlyCount "102"]
[EventDate "2025.01.06"]
[EventType "swiss"]
[EventCountry "MNC"]
[SourceTitle "playchess.com"]
[Source "ChessBase"]
[SourceQuality "1"]
[TimeControl "180+2"]

{[%evp 15,102,27,40,29,35,23,39,28,37,32,27,20,42,35,46,60,76,37,36,33,51,48,57,35,25,-53,-52,-64,-40,-101,-104,-106,-99,-224,-178,-230,-179,-278,-259,-376,-306,-337,-328,-379,-320,-386,-360,-397,-365,-482,-479,-469,-225,-231,-125,-128,-129,-127,-133,-123,-131,-131,-131,-115,-124,-123,-125,-125,-126,-212,-212,-212,-210,-212,-210,-241,-201,-314,-303,-381,-377,-364,-349,-357,-357,-357,-362,-29949,-6550]} 1. d4 {[%emt 0:00:01]} Nf6 {[%emt 0:00:02]} 2. c4 {[%emt 0:00:00]} g6 {[%emt 0:00:01]} 3. g3 {[%emt 0:00:01]} Bg7 {[%emt 0:00:01]} 4. Bg2 {[%emt 0:00:01]} O-O {[%emt 0:00:02]} 5. Nc3 {[%emt 0:00:00]} d6 {[%emt 0:00:01]} 6. Nf3 {[%emt 0:00:02]} Nc6 {[%emt 0:00:03]} 7. d5 {[%emt 0:00:00]} Nb8 {[%emt 0:00:17]} 8. O-O {[%emt 0:00:07]} a5 {[%emt 0:00:12]} 9. e4 {[%emt 0:00:03]} Na6 {[%emt 0:00:02]} 10. Re1 {[%emt 0:00:25]} Bg4 {[%emt 0:00:06]} 11. h3 {[%emt 0:00:09]} Bxf3 {[%emt 0:00:02]} 12. Bxf3 {[%emt 0:00:03]} Nd7 {[%emt 0:00:02]} 13. Bg2 {[%emt 0:00:07]} c6 {[%emt 0:00:04]} 14. Bg5 {[%emt 0:00:24]} h6 {[%emt 0:00:10] Black is weak on the light squares} 15. Be3 {[%emt 0:00:06]} Rc8 {[%emt 0:00:03]} 16. Rc1 {[%emt 0:00:03]} cxd5 {[%emt 0:00:11]} 17. Nxd5 {[%emt 0:00:43]} Bxb2 {[%emt 0:00:18]} 18. Rb1 {[%emt 0:00:01]} Bg7 {[%emt 0:00:05]} 19. Rxb7 {[%emt 0:00:01][%cal Oe4e5]} Nac5 {[%emt 0:00:47]} 20. Rb5 {[%emt 0:00:02]} ({White should play} 20. Bxc5 $1 $11 Rxc5 21. Qa4) 20... e6 $15 {[%emt 0:00:12]} 21. Nf4 {[%emt 0:00:03]} Ne5 {[%emt 0:00:04]} 22. Qc2 {[%emt 0:00:25]} (22. Qe2 $15) 22... Na6 $17 {[%emt 0:00:38] A dynamic duo of knights.} 23. c5 {[%emt 0:00:28]} Nxc5 {[%emt 0:00:12]} 24. Bxc5 {[%emt 0:00:14]} (24. Rd1 $17) 24... Rxc5 {[%emt 0:00:01]} 25. Rxc5 {[%emt 0:00:01]} (25. Qb1) 25... dxc5 $19 {[%emt 0:00:01]} 26. Qa4 {[%emt 0:00:19]} (26. Rd1 $142 Qc7 27. Nxe6 fxe6 28. f4) 26... Qd2 {[%emt 0:00:09]} 27. Rf1 {[%emt 0:00:02]} (27. Rd1 $142 Qb4 28. Qxb4 axb4 29. Ne2) 27... Qb4 {[%emt 0:00:02]} 28. Qc2 {[%emt 0:00:01]} c4 {[%emt 0:00:03]} 29. Ne2 {[%emt 0:00:05][%cal Bf4e2,Be2c3,Bc3a4,Ba4b6][%mdl 32]} Qc5 {[%emt 0:00:01]} 30. Nc3 {[%emt 0:00:01]} Rd8 {[%emt 0:00:01]} 31. Na4 {[%emt 0:00:02]} Qd4 {[%emt 0:00:04]} 32. Kh2 {[%emt 0:00:02]} Qd2 {[%emt 0:00:03]} 33. Rc1 {[%emt 0:00:02]} Qxc2 {[%emt 0:00:03]} (33... Qb4 $142 34. Nc3 Nc6 (34... Nd3 $2 35. Qd2 $19)) 34. Rxc2 {[%emt 0:00:00]} Rc8 {[%emt 0:00:04]} (34... g5 $19 {[%cal Oc4c3] ...c3! is the strong threat.} 35. Nc3 h5) 35. f4 $17 {[%emt 0:00:03]} Nd3 {[%emt 0:00:01]} 36. Nb6 {[%emt 0:00:02][%csl LRc4,LRc8] [#]} Rc6 $1 {[%emt 0:00:01]} 37. Nxc4 {[%emt 0:00:02] [#]} Nb4 $1 {[%emt 0:00:02] Black is more active.} 38. e5 {[%emt 0:00:04]} Rc5 {[%emt 0:00:02]} 39. Rc1 {[%emt 0:00:01]} Nxa2 {[%emt 0:00:02]} 40. Ra1 {[%emt 0:00:02]} Rxc4 {[%emt 0:00:01]} 41. Rxa2 {[%emt 0:00:00][%mdl 4096] Endgame KRB-KRB. Black is a pawn up.} a4 {[%emt 0:00:03]} 42. h4 {[%emt 0:00:02]} (42. Bf1 $17 Rb4 43. Kg2) 42... Bf8 $19 {[%emt 0:00:01]} 43. Bf1 {[%emt 0:00:01]} Rd4 {[%emt 0:00:01][%cal Og6g5]} 44. Kh3 {[%emt 0:00:03]} a3 {[%emt 0:00:01]} 45. Rc2 {[%emt 0:00:02]} Bb4 {[%emt 0:00:02][%cal Og6g5]} 46. Rc8+ {[%emt 0:00:08]} (46. Kg2 {was worth a try.}) 46... Kg7 {[%emt 0:00:02]} 47. Ra8 {[%emt 0:00:00]} Rd2 {[%emt 0:00:04]} 48. Bc4 {[%emt 0:00:00]} Rc2 {[%emt 0:00:03]} 49. Bb3 {[%emt 0:00:00]} Rc3 {[%emt 0:00:02]} 50. Ba2 {[%emt 0:00:00]} Bc5 {[%emt 0:00:02]} 51. Kg2 $2 {[%emt 0:00:00] Against Bf2} (51. Rc8 $19 h5 52. Rc7) 51... Rc2+ {[%emt 0:00:07]} 0-1